bitfinex/quotes_SOLUSD_20250401
["timestamp","ask_amount","ask_price","bid_price","bid_amount"]
[1743511623814,7.883,126.86,126.8,7.9164]
[1743511626394,7.8823,126.87,126.8,27.6324]
[1743511627117,7.44690866,126.85,126.8,0.03]
[1743511627324,7.44690866,126.83,126.8,0.03]
[1743511627602,7.44690866,126.81,126.8,0.03]
[1743511627801,26.38088066,126.81,126.8,0.03]
[1743511630493,18.933972,126.81,126.8,0.03]
[1743511630805,1.6328,126.82,126.8,0.03]
[1743511632208,9.07970866,126.82,126.8,0.03]
[1743511634296,1.6328,126.82,126.8,0.03]
[1743511635112,9.07970866,126.82,126.8,0.03]
[1743511635313,1.6328,126.82,126.8,0.03]
[1743511635514,9.07970866,126.82,126.8,0.03]
[1743511638001,26.38088066,126.81,126.8,0.03]
[1743511638521,20.0,126.79,126.78,0.03]
[1743511638699,27.44690866,126.79,126.78,0.03]
[1743511639217,35.33390866,126.79,126.78,0.03]
[1743511639402,54.26788066,126.79,126.78,0.03]
[1743511642317,62.46118066,126.79,126.78,0.03]
[1743511643101,18.933972,126.78,126.75,0.03]
[1743511643311,7.44690866,126.76,126.75,0.03]
[1743511644127,15.33580866,126.76,126.75,0.03]
[1743511647527,34.26978066,126.76,126.75,0.03]
[1743511648826,18.933972,126.75,126.73,0.03]
[1743511649032,114.56458066,126.74,126.73,0.03]
[1743511650620,122.45468066,126.74,126.73,0.03]
[1743511652621,40.75468066,126.74,126.73,0.03]
[1743511653217,70.75468066,126.74,126.73,0.03]
[1743511656013,63.307772,126.74,126.73,0.03]
[1743511656213,70.75468066,126.74,126.73,0.03]
[1743511658427,70.75468066,126.74,126.73,0.0001]
[1743511658637,79.95133756,126.74,126.73,0.0001]
[1743511659014,0.28432314,126.7,126.68,0.03]
[1743511659247,7.44690866,126.69,126.68,0.03]
[1743511660939,18.933972,126.69,126.68,0.03]
[1743511662412,7.44690866,126.71,126.68,0.03]
[1743511662623,18.933972,126.71,126.68,0.03]
[1743511664637,26.826072,126.71,126.68,0.03]
[1743511665121,34.27298066,126.71,126.68,0.03]
[1743511666831,26.38088066,126.71,126.68,0.03]
[1743511667036,18.933972,126.71,126.68,0.03]
[1743511669560,0.28432314,126.71,126.68,0.03]
[1743511669839,18.933972,126.71,126.68,0.03]
[1743511670445,81.7,126.72,126.68,0.03]
[1743511670650,30.0,126.74,126.68,0.03]
[1743511670833,30.0,126.74,126.68,6.93]
[1743511671545,30.0,126.74,126.69,7.8932]
[1743511672133,0.14216157,126.74,126.69,7.8932]
[1743511673222,18.85481043,126.75,126.69,7.8932]
[1743511673643,18.85481043,126.75,126.69,27.6264]
[1743511675543,0.063,126.75,126.69,27.6264]
[1743511676327,18.85481043,126.75,126.69,27.6264]
[1743511677135,7.65207023,126.75,126.69,27.6264]
[1743511677748,15.54207023,126.75,126.69,27.6264]
[1743511678622,15.54207023,126.75,126.69,7.8932]
[1743511681051,0.063,126.75,126.7,1.6234]
[1743511681838,7.7312318,126.74,126.7,1.6234]
[1743511682037,7.7312318,126.74,126.69,7.8932]
[1743511682753,7.7312318,126.7,126.68,0.03]
[1743511682948,26.09655752,126.69,126.68,0.03]
[1743511683944,33.98975752,126.69,126.68,0.03]
[1743511685756,34.27408066,126.69,126.68,0.03]
[1743511691649,34.27408066,126.69,126.68,0.0001]
[1743511691838,27.139172,126.68,126.62,0.03]
[1743511692039,7.44690866,126.64,126.62,0.03]
[1743511692237,7.44690866,126.63,126.62,0.03]
[1743511692840,7.897,126.63,126.62,0.03]
[1743511694161,7.8966,126.64,126.62,0.03]
[1743511694554,26.38088066,126.66,126.62,0.03]
[1743511695454,34.27628066,126.66,126.62,0.03]
[1743511696182,0.28432314,126.64,126.62,0.03]
[1743511696750,33.99195752,126.66,126.62,0.03]
[1743511696951,7.44690866,126.66,126.62,0.03]
[1743511697150,33.99195752,126.66,126.62,0.03]
[1743511698649,26.54504886,126.66,126.62,0.03]
[1743511699262,7.8954,126.66,126.62,0.03]
[1743511699851,89.87912314,126.67,126.62,0.03]
[1743511700063,8.17912314,126.67,126.62,0.03]
[1743511701465,8.17912314,126.67,126.62,7.9276]
[1743511702075,15.6260318,126.67,126.62,0.03]
[1743511702271,26.38088066,126.66,126.62,0.03]
[1743511702870,18.933972,126.66,126.62,0.03]
[1743511703273,33.99055752,126.68,126.62,0.03]
[1743511703577,18.64964886,126.68,126.62,0.03]
[1743511704356,26.54354886,126.68,126.62,0.03]
[1743511704556,33.99045752,126.68,126.62,0.03]
[1743511705477,0.28432314,126.65,126.62,0.03]
[1743511705672,18.79181043,126.64,126.62,0.03]
[1743511705871,26.23871909,126.64,126.62,0.03]
[1743511706255,18.933972,126.64,126.62,0.03]
[1743511706776,27.66475752,126.66,126.62,0.03]
[1743511706981,18.64964886,126.66,126.62,0.03]
[1743511707583,18.933972,126.64,126.62,0.03]
[1743511708076,0.28432314,126.64,126.62,0.03]
[1743511708274,26.38088066,126.64,126.62,0.03]
[1743511708461,26.38088066,126.63,126.62,0.03]
[1743511708662,26.38088066,126.63,126.62,0.0001]
[1743511709783,38.51844973,126.63,126.62,0.0001]
[1743511710781,45.51844973,126.63,126.62,0.0001]
[1743511711179,38.51844973,126.63,126.62,0.0001]
[1743511711972,48.76794615,126.63,126.62,0.0001]
[1743511712358,0.28432314,126.61,126.6,0.03]
[1743511712562,40.87094615,126.61,126.6,0.03]
[1743511713489,48.76914615,126.61,126.6,0.03]
[1743511714667,54.88324615,126.61,126.6,0.03]
[1743511715179,100.633972,126.6,126.55,0.03]
[1743511715389,18.64964886,126.57,126.55,0.03]
[1743511716392,11.97180087,126.56,126.55,0.03]
[1743511716599,112.32144973,126.56,126.55,0.03]
[1743511716796,30.62144973,126.56,126.55,0.03]
[1743511717893,38.52274973,126.56,126.55,0.03]
[1743511720780,18.933972,126.56,126.55,0.03]
[1743511721499,26.835272,126.56,126.55,0.03]
[1743511721967,38.52274973,126.56,126.55,0.03]
[1743511722770,0.14216157,126.57,126.55,0.03]
[1743511722974,7.9001,126.58,126.55,0.03]
[1743511723590,112.32144973,126.59,126.55,0.03]
[1743511723591,18.933972,126.59,126.55,0.03]
[1743511723798,99.84679642,126.63,126.55,0.03]
[1743511724001,0.28432314,126.62,126.55,27.687]
[1743511724296,18.933972,126.62,126.55,27.687]
[1743511725288,18.933972,126.62,126.55,57.687]
[1743511726000,81.763,126.63,126.55,57.687]
[1743511727180,0.063,126.63,126.55,57.687]
[1743511730798,0.063,126.63,126.55,97.197]
[1743511732093,0.063,126.63,126.56,38.933972]
[1743511732406,0.063,126.63,126.57,8.1636]
[1743511732609,0.063,126.63,126.58,7.04]
[1743511733275,0.063,126.63,126.58,37.04]
[1743511733480,0.063,126.63,126.59,7.8995]
[1743511734284,0.063,126.63,126.59,37.8995]
[1743511737699,0.063,126.63,126.6,7.02]
[1743511737882,0.063,126.63,126.59,30.0]
[1743511738079,11.68747773,126.61,126.5,28.0759]
[1743511738284,0.28432314,126.57,126.56,30.0]
[1743511738594,18.933972,126.56,126.49,0.43]
[1743511738796,30.62144973,126.56,126.49,0.43]
[1743511738995,18.933972,126.54,126.49,0.43]
[1743511739681,11.97180087,126.54,126.49,0.43]
[1743511739881,18.933972,126.52,126.49,0.43]
[1743511740703,81.7,126.55,126.49,8.3355]
[1743511741005,81.84216157,126.55,126.49,8.3355]
[1743511741389,81.84216157,126.55,126.5,7.04]
[1743511742099,81.84216157,126.55,126.51,7.9045]
[1743511742904,0.14216157,126.55,126.51,7.9045]
[1743511743500,18.79181043,126.56,126.51,7.9045]
[1743511744205,30.40365103,126.6,126.51,7.9045]
[1743511744206,0.28432314,126.61,126.51,33.7876]
[1743511744393,0.28432314,126.61,126.54,20.0]
[1743511744589,0.28432314,126.62,126.55,7.04]
[1743511744793,18.933972,126.62,126.55,7.04]
[1743511745187,30.62144973,126.62,126.55,7.04]
[1743511746217,0.28432314,126.6,126.55,7.04]
[1743511746992,0.28432314,126.61,126.55,14.9417]
[1743511747983,0.28432314,126.61,126.55,34.6967]
[1743511748799,18.71264886,126.62,126.55,34.6967]
[1743511749188,26.61034886,126.62,126.55,34.6967]
[1743511749388,0.28432314,126.61,126.56,7.08]
[1743511749590,11.68747773,126.6,126.56,7.08]
[1743511750112,0.28432314,126.61,126.56,7.08]
[1743511750306,38.29782659,126.62,126.56,7.08]
[1743511750307,18.71264886,126.62,126.57,7.9007]
[1743511752003,0.063,126.62,126.57,27.6526]
[1743511752692,0.063,126.62,126.58,6.3955]
[1743511754201,0.063,126.62,126.59,7.06]
[1743511754593,0.063,126.62,126.59,14.9594]
[1743511755298,0.063,126.62,126.59,34.7081]
[1743511756509,0.063,126.62,126.6,7.08]
[1743511757304,0.063,126.62,126.59,27.6481]
[1743511757606,0.063,126.62,126.61,7.08]
[1743511758300,0.063,126.62,126.61,14.9782]
[1743511765301,0.063,126.62,126.61,7.08]
[1743511765519,0.063,126.62,126.61,14.9782]
[1743511765816,0.063,126.62,126.61,7.8982]
[1743511766027,0.063,126.62,126.61,14.9782]
[1743511767021,0.063,126.62,126.61,15.26252314]
[1743511767226,0.063,126.62,126.61,14.9782]
[1743511767394,0.063,126.62,126.6,7.08]
[1743511768310,0.063,126.62,126.61,7.8982]
[1743511772020,0.063,126.62,126.6,7.8985]
[1743511784534,0.0001,126.63,126.62,38.933972]
[1743511785021,0.0001,126.63,126.62,20.0]
[1743511785918,0.0001,126.63,126.62,27.8976]
[1743511792121,0.0001,126.63,126.62,34.08925974]
[1743511792522,0.0001,126.63,126.62,27.8976]
[1743511795227,0.0001,126.63,126.62,34.9576]
[1743511796143,0.063,126.65,126.63,0.28432314]
[1743511796345,0.063,126.65,126.63,18.933972]
[1743511797455,0.063,126.65,126.64,7.8963]
[1743511800358,0.063,126.65,126.63,7.897]
[1743511800547,0.063,126.65,126.64,7.06]
[1743511802246,0.063,126.65,126.64,14.9563]
[1743511803259,8.1066,126.7,126.64,53.631172]
[1743511803563,8.1066,126.7,126.67,20.0]
[1743511803564,1.5888,126.7,126.67,20.0]
[1743511803960,8.1306,126.73,126.68,7.04]
[1743511804337,8.1306,126.73,126.69,7.8932]
[1743511805643,8.1306,126.73,126.69,27.6264]
[1743511806255,0.063,126.75,126.69,27.6264]
[1743511807151,0.063,126.75,126.7,18.933972]
[1743511807340,0.063,126.75,126.74,20.0]
[1743511807544,0.063,126.75,126.74,27.04]
[1743511808959,0.063,126.75,126.74,34.9301]
[1743511809877,0.063,126.75,126.74,53.864072]
[1743511810048,0.063,126.75,126.74,34.9301]
[1743511813690,0.063,126.76,126.74,34.9301]
[1743511813874,0.063,126.78,126.74,54.6555]
[1743511814865,0.063,126.78,126.75,18.933972]
[1743511816393,0.063,126.78,126.76,7.8889]
[1743511817269,6.3626,126.82,126.76,27.6112]
[1743511817475,0.063,126.82,126.77,18.933972]
[1743511817787,0.063,126.82,126.78,7.04]
[1743511817983,8.23282314,126.82,126.75,7.8893]
[1743511818175,0.063,126.82,126.76,7.04]
[1743511819287,7.9485,126.82,126.76,14.9284]
[1743511820179,0.063,126.82,126.76,14.9284]
[1743511820773,0.063,126.82,126.76,14.9584]
[1743511820974,0.063,126.78,126.76,14.9584]
[1743511823991,0.063,126.78,126.76,7.07]
[1743511824167,0.063,126.78,126.76,0.03]
[1743511826890,0.063,126.78,126.76,7.11]
[1743511827090,0.063,126.78,126.76,14.9985]
[1743511831895,0.063,126.82,126.76,34.7208]
[1743511833689,0.063,126.82,126.76,74.1654]
[1743511834287,0.063,126.82,126.8,7.8864]
[1743511836895,0.063,126.82,126.78,27.6052]
[1743511838981,0.063,126.82,126.78,31.6171992]
[1743511843815,0.063,126.82,126.79,7.08]
[1743511844517,0.063,126.82,126.8,7.8864]
[1743511846810,0.063,126.82,126.79,14.9667]
[1743511847415,0.063,126.82,126.79,7.8867]
[1743511847594,0.063,126.82,126.8,7.06]
[1743511847998,0.063,126.82,126.78,24.0119992]
[1743511848192,0.063,126.82,126.8,7.06]
[1743511853619,0.063,126.82,126.8,14.9459]
[1743511857712,0.063,126.86,126.82,7.8851]
[1743511857909,0.063,126.86,126.82,27.598]
[1743511860811,0.063,126.86,126.82,7.8851]
[1743511862019,0.063,126.86,126.81,7.8858]
[1743511862701,0.063,126.86,126.81,27.6003]
[1743511867231,0.063,126.86,126.83,27.5959]
[1743511867416,0.063,126.86,126.84,7.0]
[1743511869804,0.063,126.86,126.84,14.8834]
[1743511880440,0.063,126.88,126.87,20.0]
[1743511882336,0.063,126.88,126.87,27.882]
[1743511886426,0.063,126.9,126.87,47.5872]
[1743511886753,0.063,126.9,126.88,6.98]
[1743511887438,0.063,126.91,126.88,6.98]
[1743511887439,0.063,126.91,126.89,18.933972]
[1743511887644,0.0001,126.91,126.89,38.933972]
[1743511888552,0.063,126.93,126.91,38.933972]
[1743511888747,0.063,126.95,126.93,20.0]
[1743511889249,0.063,126.95,126.93,38.933972]
[1743511890145,0.063,126.96,126.95,20.0]
[1743511890356,347.15658249,127.0,126.95,1.6328]
[1743511890643,347.15658249,127.0,126.99,27.8746]
[1743511890827,347.15658249,127.0,126.99,20.0]
[1743511891036,347.15658249,127.0,126.96,6.98]
[1743511891037,348.69188249,127.0,126.97,6.98]
[1743511892344,347.15658249,127.0,126.97,6.98]
[1743511892724,347.15658249,127.0,126.98,7.8752]
[1743511893638,347.15658249,127.0,126.98,11.72234426]
[1743511896243,8.0248,127.07,127.02,20.0]
[1743511896444,1.6343,127.07,127.04,27.5503]
[1743511896629,1.6343,127.1,127.04,27.5503]
[1743511897343,9.08745233,127.1,127.04,7.8715]
[1743511897647,1.6343,127.1,127.04,7.8715]
[1743511898954,1.6343,127.1,127.04,27.5503]
[1743511899452,26.27496276,127.13,127.08,0.28432314]
[1743511899453,0.03,127.13,127.08,0.28432314]
[1743511899639,0.03,127.13,127.09,6.96]
[1743511900436,0.03,127.13,127.1,20.0]
[1743511900841,0.03,127.13,127.1,27.8676]
[1743511902257,0.03,127.13,127.1,20.0]
[1743511902847,0.03,127.13,127.11,6.94]
[1743511903051,0.03,127.13,127.11,14.8068]
[1743511903756,0.03,127.13,127.11,6.94]
[1743511906793,0.03,127.13,127.11,14.8071]
[1743511907059,0.03,127.13,127.11,6.94]
[1743511907261,0.03,127.13,127.11,14.8071]
[1743511908949,0.03,127.13,127.11,6.94]
[1743511909147,0.03,127.13,127.12,6.94]
[1743511910264,0.03,127.13,127.12,14.8065]
[1743511914866,0.03,127.13,127.1,20.0]
[1743511915063,0.03,127.13,127.1,6.92]
[1743511916367,0.03,127.13,127.1,14.7877]
[1743511917463,0.03,127.13,127.1,6.92]
[1743511917767,0.03,127.13,127.1,14.7877]
[1743511918369,0.03,127.13,127.1,34.4572]
[1743511921947,0.03,127.13,127.1,14.7877]
[1743511922152,0.03,127.13,127.12,20.0]
[1743511922354,0.03,127.13,127.1,14.7877]
[1743511924670,0.03,127.13,127.12,20.0]
[1743511926176,0.03,127.13,127.12,27.8665]
[1743511935489,0.03,127.13,127.12,20.0]
[1743511936987,0.03,127.13,127.11,7.8669]
[1743511937901,0.03,127.13,127.1,7.8676]
[1743511938073,7.41145418,127.12,127.06,7.8699]
[1743511938270,7.41145418,127.12,127.03,175.47135489]
[1743511938271,7.41145418,127.09,127.05,6.9]
[1743511939374,9.4769,127.08,127.05,6.9]
[1743511939570,16.88835418,127.08,127.05,6.9]
[1743511939769,16.88835418,127.08,127.03,7.8721]
[1743511940790,1.6079,127.08,127.03,7.8721]
[1743511941177,1.6079,127.08,127.03,27.5524]
[1743511947192,1.5669,127.12,127.06,20.0]
[1743511947392,9.4335,127.12,127.07,6.9]
[1743511948396,9.4335,127.12,127.07,14.7694]
[1743511949574,16.84495418,127.12,127.07,6.9]
[1743511949781,26.34542618,127.11,127.07,6.9]
[1743511949998,7.41145418,127.1,127.04,14.7515]
[1743511951097,15.27955418,127.1,127.04,14.7515]
[1743511951400,7.41145418,127.09,127.04,14.7515]
[1743511951698,11.59729306,127.09,127.04,14.7515]
[1743511952495,19.46609306,127.09,127.04,14.7515]
[1743511954299,7.8688,127.09,127.04,14.7515]
[1743511955087,19.46609306,127.09,127.04,14.7515]
[1743511955699,18.933972,127.09,127.04,14.7515]
[1743511958199,38.39986506,127.09,127.04,14.7515]
[1743511959696,38.39986506,127.09,127.01,0.063]
[1743511959878,38.39986506,127.09,127.02,6.88]
[1743511960901,38.39986506,127.09,127.03,7.8721]
[1743511961817,1.5433,127.13,127.04,23.90356856]
[1743511963005,1.5433,127.13,127.05,27.5481]
[1743511964804,0.03,127.13,127.09,20.0]
[1743511965109,0.03,127.13,127.11,7.8672]
[1743511967002,0.03,127.13,127.1,27.5365]
[1743511967203,0.03,127.13,127.1,34.5165]
[1743511975803,0.03,127.13,127.1,14.8478]
[1743511976402,0.03,127.13,127.1,14.8278]
[1743511976599,0.03,127.13,127.07,7.8696]
[1743511976912,7.44382211,127.13,127.08,6.96]
[1743511978423,7.44382211,127.13,127.09,7.8684]
[1743511979109,15.30982211,127.13,127.09,7.8684]
[1743511980511,7.896,127.13,127.09,7.8684]
[1743511981313,7.896,127.13,127.05,66.9012]
[1743511981613,7.896,127.13,127.06,6.94]
[1743511982014,7.896,127.13,127.05,66.9012]
[1743511982196,7.896,127.13,127.06,6.94]
[1743511982696,0.03,127.13,127.06,6.94]
[1743511983514,21.46462211,127.13,127.07,7.8696]
[1743511983713,26.34779411,127.12,127.06,7.87]
[1743511983917,7.41382211,127.1,127.04,14.8115]
[1743511984096,7.41382211,127.09,127.04,14.8115]
[1743511984426,1.6153,127.11,127.04,34.4903]
[1743511984601,81.7,127.12,127.07,20.0]
[1743511984796,13.59832211,127.13,127.08,6.94]
[1743511984992,6.1845,127.13,127.08,6.94]
[1743511985208,13.59832211,127.13,127.08,6.94]
[1743511985526,13.59832211,127.13,127.09,7.8684]
[1743511987812,21.46422211,127.13,127.08,6.94]
[1743511988119,21.46422211,127.13,127.08,14.8089]
[1743511988609,26.34779411,127.12,127.08,6.94]
[1743511989007,21.46422211,127.13,127.08,14.8088]
[1743511990519,7.41382211,127.12,127.08,14.8088]
[1743511991017,15.28052211,127.12,127.08,14.8088]
[1743511991418,7.8667,127.12,127.08,14.8088]
[1743511993224,7.8667,127.12,127.08,6.94]
[1743511993933,7.8667,127.12,127.08,14.8089]
[1743511995040,7.8667,127.12,127.08,6.94]
[1743511995430,7.8667,127.12,127.08,14.809]
[1743511995920,33.93017097,127.12,127.08,6.94]
[1743511996834,26.06347097,127.1,127.04,6.9]
[1743511997215,7.41382211,127.09,127.04,6.9]
[1743511997406,7.41382211,127.07,127.02,6.92]
[1743511997607,7.41382211,127.06,127.02,6.92]
[1743511997830,7.41382211,127.06,127.01,14.856]
[1743511998221,7.41382211,127.07,127.01,14.856]
[1743511998729,7.8702,127.06,127.01,14.856]
[1743511999334,0.28432314,127.08,127.01,14.856]
[1743511999628,0.28432314,127.08,127.01,34.5394]
[1743511999930,8.15352314,127.08,127.01,34.5394]
[1743512000130,15.56734525,127.08,127.01,34.5394]
[1743512000325,7.69814525,127.08,127.01,34.5394]
[1743512001233,0.28432314,127.08,127.01,34.5394]
[1743512001445,83.3191,127.1,127.04,20.0]
[1743512001610,90.73292211,127.1,127.05,6.9]
[1743512002132,98.60102211,127.1,127.05,6.9]
[1743512003426,26.34779411,127.09,127.05,6.9]
[1743512005333,34.21669411,127.09,127.05,6.9]
[1743512008825,7.41382211,127.07,127.01,0.063]
[1743512009215,7.41382211,127.06,127.01,0.063]
[1743512009436,7.41382211,127.07,127.01,0.063]
[1743512009735,7.41382211,127.07,127.02,7.8727]
[1743512010437,7.8702,127.06,127.01,7.9363]
[1743512012822,7.8697,127.07,127.01,7.9363]
[1743512013221,15.28352211,127.07,127.01,7.9363]
[1743512015343,18.933972,127.07,127.01,7.9363]
[1743512016544,26.803672,127.07,127.01,7.9363]
[1743512016748,18.933972,127.09,127.01,27.6197]
[1743512017043,26.802372,127.09,127.01,27.6197]
[1743512017242,34.21619411,127.09,127.01,27.6197]
[1743512019925,7.41382211,127.08,127.01,27.6197]
[1743512020948,7.8696,127.07,127.01,27.6197]
[1743512021123,15.28312211,127.08,127.01,27.6197]
[1743512021322,7.8693,127.08,127.01,27.6197]
[1743512021750,26.34779411,127.09,127.01,27.6197]
[1743512021751,26.802672,127.09,127.01,27.6197]
[1743512022049,18.933972,127.09,127.01,27.6197]
[1743512022424,98.63102211,127.1,127.04,20.0]
[1743512022627,91.2172,127.1,127.04,26.88]
[1743512023130,98.63102211,127.1,127.05,7.8709]
[1743512024248,91.2172,127.1,127.05,7.8709]
[1743512025948,98.63102211,127.1,127.05,7.8709]
[1743512027153,26.06347097,127.09,127.04,14.7513]
[1743512028146,7.869,127.08,127.04,14.7513]
[1743512029137,26.06347097,127.09,127.04,14.7513]
[1743512029138,26.51824886,127.09,127.04,14.7513]
[1743512030833,33.93207097,127.09,127.04,14.7513]
[1743512031954,8.15372314,127.08,127.04,14.7513]
[1743512038065,0.28432314,127.08,127.04,14.7513]
[1743512041744,18.64964886,127.07,127.04,6.88]
[1743512043665,26.51974886,127.07,127.04,6.88]
[1743512045559,18.64964886,127.07,127.04,14.7515]
[1743512046145,26.51944886,127.07,127.04,6.88]
[1743512047864,18.64964886,127.07,127.04,14.7514]
[1743512048056,8.15362314,127.08,127.04,14.7514]
[1743512048248,18.933972,127.08,127.04,14.7514]
[1743512049270,26.802972,127.08,127.04,14.7514]
[1743512052071,0.28432314,127.06,127.04,6.88]
[1743512052268,0.28432314,127.06,127.01,14.816]
[1743512053375,18.79181043,127.08,127.01,34.4994]
[1743512053981,0.03,127.07,127.01,34.4994]
[1743512055458,0.03,127.07,127.04,20.0]
[1743512056573,0.03,127.07,127.05,7.8709]
[1743512059584,0.03,127.07,127.05,14.7509]
[1743512074282,0.03,127.07,127.05,7.8709]
[1743512074484,0.03,127.07,127.06,6.88]
[1743512078821,0.03,127.07,127.06,14.7502]
[1743512080989,0.03,127.1,127.09,20.0]
[1743512082511,0.03,127.1,127.09,27.8684]
[1743512085809,0.03,127.13,127.09,66.473372]
[1743512086012,0.03,127.13,127.12,20.0]
[1743512087613,0.03,127.13,127.12,27.8665]
[1743512087817,1.6599,127.19,127.12,66.466872]
[1743512088014,0.03,127.2,127.13,25.186772]
[1743512088213,0.03,127.2,127.17,20.0]
[1743512088401,0.03,127.2,127.18,6.88]
[1743512088606,0.03,127.2,127.18,10.88480434]
[1743512089705,0.03,127.2,127.14,7.8653]
[1743512090012,0.03,127.2,127.16,6.88]
[1743512091400,0.03,127.2,127.16,10.79610158]
[1743512093510,0.03,127.2,127.16,18.65970158]
[1743512093917,0.03,127.2,127.16,38.65970158]
[1743512098324,0.03,127.2,127.16,30.79610158]
[1743512099210,7.8916,127.2,127.16,30.79610158]
[1743512099624,7.8916,127.2,127.16,6.88]
[1743512101337,0.03,127.2,127.16,6.88]
[1743512102635,20.625572,127.2,127.16,6.88]
[1743512102930,26.34779411,127.18,127.12,0.063]
[1743512103139,26.34779411,127.18,127.12,6.943]
[1743512103325,7.8634,127.17,127.12,6.943]
[1743512103525,7.8634,127.17,127.12,10.96447459]
[1743512104032,7.8634,127.17,127.12,4.08447459]
[1743512104540,15.27722211,127.17,127.12,4.08447459]
[1743512107642,15.27722211,127.17,127.12,0.063]
[1743512107939,27.98329411,127.16,127.12,0.063]
[1743512109041,7.8647,127.15,127.12,0.063]
[1743512109638,15.27852211,127.15,127.12,0.063]
[1743512110022,34.94032211,127.15,127.12,0.063]
[1743512110725,18.933972,127.14,127.12,0.063]
[1743512111043,7.8659,127.13,127.12,0.063]
[1743512112042,34.21369411,127.13,127.12,0.063]
[1743512112220,35.81659411,127.13,127.12,0.063]
[1743512113544,27.95069411,127.13,127.12,0.063]
[1743512113720,20.536872,127.13,127.12,0.063]
[1743512114542,28.402772,127.13,127.12,0.063]
[1743512114728,35.81659411,127.13,127.12,0.063]
[1743512122749,35.84659411,127.13,127.12,0.063]
[1743512123259,117.54659411,127.13,127.12,0.063]
[1743512125134,102.266872,127.13,127.12,0.063]
[1743512125448,81.73,127.13,127.12,0.063]
[1743512126253,0.03,127.13,127.12,0.063]
[1743512141464,81.7,127.18,127.13,20.0]
[1743512141651,6.2083,127.2,127.14,6.88]
[1743512142759,6.2083,127.2,127.15,7.8647]
[1743512143249,0.03,127.2,127.15,27.5265]
[1743512145263,0.03,127.2,127.15,66.8501]
[1743512145571,0.03,127.2,127.15,27.5265]
[1743512146662,0.03,127.2,127.17,7.8632]
[1743512146860,0.03,127.2,127.18,6.88]
[1743512149072,0.03,127.2,127.19,27.8622]
[1743512149252,0.03,127.22,127.19,27.8622]
[1743512150269,0.03,127.22,127.19,47.5178]
[1743512155860,0.03,127.26,127.19,47.5178]
[1743512156064,0.03,127.26,127.2,18.933972]
[1743512157384,0.03,127.26,127.21,27.5135]
[1743512157565,0.03,127.26,127.22,6.86]
[1743512158287,0.03,127.26,127.22,10.76992988]
[1743512159585,0.03,127.26,127.23,7.8597]
[1743512160482,0.03,127.26,127.23,27.5091]
[1743512161163,0.03,127.26,127.24,6.86]
[1743512161569,15.27282211,127.25,127.17,7.8634]
[1743512161776,7.41382211,127.24,127.19,6.86]
[1743512162486,7.41382211,127.24,127.17,11.89084788]
[1743512162694,7.41382211,127.22,127.17,4.02744788]
[1743512162890,1.5816,127.21,127.16,7.8638]
[1743512163393,27.96309411,127.23,127.16,7.8638]
[1743512163691,15.27462211,127.22,127.16,18.73772123]
[1743512165376,35.82319411,127.23,127.16,18.73772123]